Cogmind - Beta 9.4 @@@ ROGUE MODE // 2020.01.15 @ 13:55:28 Player: derk Result: Destroyed by B-86 Titan with Railgun Performance ------------- Evolutions (7) 3500 Regions Visited (17) 3400 Robots Destroyed (210) 1050 Value Destroyed (11758) 11758 Prototype IDs (22) 440 Alien Tech Used (0) 0 Bonus (5083) 5083 TOTAL SCORE: 25231 Bonus ------- High Alert Combat Kills 1364 Follower Combat Kills 2377 Entered Garrisons 600 Used RIF Installer 1500 Met R17 at Cetus 500 Friendly Fire -1258 Cogmind --------- Core Integrity 0/1300 Matter 26/300 Energy 44/100 System Corruption 21% Temperature Cool (18) Movement Core (100) Ox1 Location -3/Research Parts ------- > --- POWER (1) -------- (None) > --- PROPULSION (6) --- (None) > --- UTILITY (11) ----- Relay Coupler [NC] (8) Relay Coupler [Swarmer] (15) > --- WEAPON (3) ------- Improved Remote Datajack > --- INVENTORY (4) ---- Improved Antigrav System Advanced Matter Compressor (0) Relay Coupler [NC] (35) Relay Coupler [Swarmer] (44) Peak State ------------ > --- POWER ------------ Quantum Reactor > --- PROPULSION ------- Centrium Heavy Treads Centrium Heavy Treads Centrium Heavy Treads > --- UTILITY ---------- Large Storage Unit Large Storage Unit Large Storage Unit Advanced Targeting Computer Improved Target Analyzer Centrium Medium Armor Plating Centrium Medium Armor Plating Relay Coupler [NC] Relay Coupler [Sentry] > --- WEAPON ----------- Improved KE Penetrator Improved KE Penetrator Improved Remote Datajack > --- INVENTORY -------- Quantum Reactor Advanced Medium Treads Armored Wheel Advanced Heat Sink Matter Compressor Improved Kinecellerator Improved Weapon Cycler Improved Force Field Remote Force Field Relay Coupler [Swarmer] Relay Coupler [Grunt] Relay Coupler [Grunt] Relay Coupler [Duelist] Relay Coupler [Duelist] Relay Coupler [Demolisher] Relay Coupler [Hunter] Relay Coupler [Behemoth] Advanced Variable Charge Gun Advanced Variable Charge Gun Heavy Proton Missile Launcher Improved Remote Datajack [Rating: 130] Favorites ----------- Power Quantum Reactor Engine Improved Deuterium Engine Power Core Micro Fission Core Reactor Quantum Reactor Propulsion Centrium Heavy Treads Treads Centrium Heavy Treads Leg Myomer Leg Wheel Armored Wheel Hover Unit Improved Antigrav System Utility Large Storage Unit Device Improved Weapon Cycler Storage Large Storage Unit Processor Advanced Targeting Computer Hackware Relay Coupler [Grunt] Protection Centrium Medium Armor Plating Weapon Railgun Energy Gun Advanced Variable Charge Gun Energy Cannon HERF Cannon Ballistic Gun Railgun Launcher Improved Proton Missile Launcher Special Weapon Improved Remote Datajack Impact Weapon Maul Slashing Weapon Katana Piercing Weapon Lance Build | -11 -10 -9 -9 -8 -7 -7 -7 -6 -6 -6 -5 -5 -5 -4 -4 -4 -3 ------- Run | Scr Mat Mat Min Mat Fac Gar Fac Fac Ext Cet Fac Gar Fac Fac Gar Fac Res Slots Evolved 14 | . . 2 . 2 2 . . 2 . . 2 . . 2 . . 2 Power . | . . . . . . . . . . . . . . . . . . Propulsion 4 | . . . . . . . . 2 . . 2 . . . . . . Utility 9 | . . 2 . 2 2 . . . . . . . . 1 . . 2 Weapon 1 | . . . . . . . . . . . . . . 1 . . . Parts Attached 400 | 6 7 45 7 21 5 40 22 29 28 14 8 11 18 14 37 34 54 Power 31 | 1 . 6 1 2 1 1 3 2 1 2 . . . 1 4 2 4 Engine 14 | 1 . 6 1 2 1 . 1 2 . . . . . . . . . Core 8 | . . . . . . 1 2 . 1 . . . . . 3 1 . Reactor 9 | . . . . . . . . . . 2 . . . 1 1 1 4 Propulsion 83 | 2 . 14 4 4 . 8 1 4 6 3 1 1 4 3 7 7 14 Treads 26 | . . 7 . 1 . . . 2 1 2 1 1 2 1 3 4 1 Leg 13 | . . . 2 . . . . 1 4 1 . . 2 . 1 . 2 Wheel 33 | 2 . 7 2 3 . 8 1 1 1 . . . . 2 3 3 . Hover 11 | . . . . . . . . . . . . . . . . . 11 Flight . | . . . . . . . . . . . . . . . . . . Utility 128 | 1 3 8 1 4 3 12 6 15 8 2 1 5 7 6 18 9 19 Device 44 | . 1 2 . 2 . 8 5 1 3 . 1 . . 4 4 4 9 Storage 19 | 1 2 1 . 1 . 2 . 2 . . . . 1 . 1 2 6 Processor 6 | . . 1 . 1 1 . . 1 1 . . . . . 1 . . Hackware 32 | . . . . . . . . 7 2 . . 4 4 1 8 2 4 Protection 27 | . . 4 1 . 2 2 1 4 2 2 . 1 2 1 4 1 . Artifact . | . . . . . . . . . . . . . . . . . . Weapon 158 | 2 4 17 1 11 1 19 12 8 13 7 6 5 7 4 8 16 17 Energy Gun 32 | . 2 3 . 6 1 1 2 1 1 3 2 1 2 2 2 1 2 Energy Cannon 3 | . . . . . . . . . . . . . . . . 2 1 Ballistic Gun 47 | 2 1 7 . 2 . 5 7 2 6 2 1 3 2 1 2 1 3 Ballistic Cannon . | . . . . . . . . . . . . . . . . . . Launcher 21 | . . 1 1 . . 8 . 2 1 2 1 . . . . 2 3 Special Weapon 25 | . 1 1 . . . . 1 1 4 . . 1 2 1 2 6 5 Impact Weapon 2 | . . 1 . . . . . . . . 1 . . . . . . Slashing Weapon 26 | . . 4 . 3 . 5 2 2 1 . . . . . 2 4 3 Piercing Weapon 2 | . . . . . . . . . . . 1 . 1 . . . . Special Melee Weapon . | . . . . . . . . . . . . . . . . . . Unidentified Prototypes 14 | . . . . . 1 . . . . 4 2 . . 1 . 2 4 Parts Lost 106 | . 2 14 . 6 . 10 6 2 5 1 . . 1 3 15 7 34 Power 16 | . . 4 . . . 1 2 . . . . . . 1 4 . 4 Propulsion 23 | . . 4 . 3 . . . 2 1 . . . 1 . 2 3 7 Utility 34 | . . 2 . . . 6 2 . 1 1 . . . 1 6 1 14 Weapon 33 | . 2 4 . 3 . 3 2 . 3 . . . . 1 3 3 9 Highest Loss Streak 16 | . 2 4 . 3 . 4 4 1 3 1 . . 1 1 4 2 16 Average Slot Usage (%) 89 | . 97 94 99 96 100 97 98 88 91 92 82 81 80 80 84 87 86 Engine 2 | . 14 9 11 9 7 5 . 6 1 . . . . . . . . Core 1 | . . . . . . 1 6 . 4 . . . . . . 4 . Reactor 1 | . . . . . . . . . . 5 5 5 5 4 2 . 3 Treads 8 | . . 11 . . . . . 8 10 6 17 17 16 14 10 8 1 Leg 1 | . . . 5 . . . . . 5 11 . . 1 . . . 1 Wheel 7 | . 28 9 16 16 15 14 15 7 4 . . . . 1 7 10 7 Device 7 | . 1 2 . 14 15 14 26 4 2 6 8 7 . 1 5 3 9 Storage 19 | . 25 23 33 24 21 21 23 20 23 20 17 17 17 15 19 20 14 Processor 7 | . . . . 8 8 8 7 9 15 13 11 11 11 10 4 5 . Hackware 6 | . . . . . . . . 5 1 . . 2 11 9 11 16 21 Protection 6 | . . 17 10 3 15 12 3 9 7 11 7 5 3 6 3 . . Energy Gun 2 | . 5 2 . 10 1 2 3 . 3 4 4 5 1 2 . . 1 Ballistic Gun 6 | . 17 9 11 4 13 6 9 3 4 3 4 3 4 7 9 5 5 Special Weapon 2 | . 4 . . . . . . 5 3 . . 1 4 4 3 3 2 Slashing Weapon 1 | . . 7 . 2 . 2 1 . . . . . . . . 1 1 Naked Turns . | . . . . . . . . . . . . . . . . . . Heaviest Build 109 | 11 40 60 64 70 72 74 85 92 92 100 95 91 86 101 109 96 90 Greatest Support 240 | 32 32 40 32 28 26 28 24 40 85 160 240 240 240 240 235 155 108 Greatest Overweight (x) 9 | . 1 4 5 5 2 4 5 6 9 1 . . . 3 6 5 8 Average Overweight (x) 1 | . . 1 1 1 2 2 2 3 1 . . . . . 1 1 . Largest Inventory Capacity 28 | 6 16 22 22 22 22 22 22 22 22 22 22 22 22 22 28 28 22 Average Capacity 21 | 5 14 16 22 20 21 19 22 22 22 22 22 22 22 22 26 27 17 Most Carried 28 | 6 11 19 20 22 18 22 22 22 22 22 22 22 22 22 28 28 21 Average Carried 19 | 3 8 11 18 17 16 16 21 21 20 21 21 21 21 21 23 26 15 Final Capacity 28 | 6 16 22 22 22 16 22 22 22 22 22 22 22 22 22 28 22 4 Final Carried 28 | 6 10 18 18 19 16 22 21 22 22 22 22 22 21 21 28 22 4 Class Distribution -------------------- 52% | Bothacker-Mutant 24% | Scavenger-Mutant 13% | Mutant 5% | Hauler-Mutant Dominant Class ---------------- Mutant | -10/Materials Mutant | -9/Materials Hauler-Mutant | -9/Mines Hauler-Mutant | -8/Materials Hauler-Mutant | -7/Factory Scavenger-Mutant | -7/Garrison Scavenger-Mutant | -7/Factory Bothacker-Mutant | -6/Factory Bothacker-Mutant | -6/Extension Scavenger-Mutant | -6/Cetus Scavenger-Mutant | -5/Factory Bothacker-Mutant | -5/Garrison Bothacker-Mutant | -5/Factory Bothacker-Mutant | -4/Factory Bothacker-Mutant | -4/Garrison Bothacker-Mutant | -4/Factory Bothacker-Mutant | -3/Research Resources | -11 -10 -9 -9 -8 -7 -7 -7 -6 -6 -6 -5 -5 -5 -4 -4 -4 -3 ----------- Run | Scr Mat Mat Min Mat Fac Gar Fac Fac Ext Cet Fac Gar Fac Fac Gar Fac Res Matter Collected 8628 | 285 86 678 88 340 . 799 507 911 576 310 86 360 439 243 1214 803 903 Remotely . | . . . . . . . . . . . . . . . . . . Salvage Created 10228 | 125 168 1054 113 510 . 1413 915 408 525 381 196 1186 654 209 833 684 854 Parts 491 | 5 11 57 6 22 . 47 44 27 14 14 14 48 30 13 34 45 60 Haulers Intercepted . | . . . . . . . . . . . . . . . . . . Recyclers Shooed 5 | . . . . . . . . . . . . . . 2 . . 3 Parts Field Recycled 2 | . . . . . . . . . . . . . . 2 . . . Retrieved Matter 90 | . . . . . . . . . . . . . . 90 . . . Parts Self-Destructed . | . . . . . . . . . . . . . . . . . . Prevented . | . . . . . . . . . . . . . . . . . . Kills | -11 -10 -9 -9 -8 -7 -7 -7 -6 -6 -6 -5 -5 -5 -4 -4 -4 -3 ------- Run | Scr Mat Mat Min Mat Fac Gar Fac Fac Ext Cet Fac Gar Fac Fac Gar Fac Res Combat Hostiles Destroyed 179 | . 4 22 3 8 . 24 14 12 8 4 4 20 9 3 13 19 12 Melee 9 | . . 7 . 1 . 1 . . . . . . . . . . . Guns 137 | . 4 15 . 7 . 9 14 10 6 1 4 20 9 3 13 11 11 Cannons 6 | . . . . . . . . . . . . . . . . 6 . AOE 21 | . . . 3 . . 10 . 2 1 2 . . . . . 2 1 Classes Destroyed 17 | 2 2 3 1 . . 3 2 2 . . . 1 . . . 1 . Worker 7 | . . 3 . . . . 3 . . . . . . . . . 1 Builder 2 | . . . . . . . . 1 . . . . . 1 . . . Tunneler 3 | 2 . . . . . . . . . . . . . 1 . . . Recycler 7 | 1 1 3 . 1 . . 1 . . . . . . . . . . Mechanic 1 | . . . . . . . . . . . . . . . . 1 . Operator 3 | . . . . . . . 2 . . . . . 1 . . . . Drone 2 | . . . . . . . . 2 . . . . . . . . . Watcher 4 | . . . . . . 1 . . . 2 . . 1 . . . . Swarmer 49 | . 2 10 . . . 7 2 8 . . 2 3 1 . 5 9 . Grunt 56 | . 2 5 2 4 . 12 7 1 6 1 . 11 3 . 2 . . Brawler 6 | . . . 1 1 . 1 . . . . . 1 . . 2 . . Duelist 1 | . . 1 . . . . . . . . . . . . . . . Sentry 24 | . . 6 . 3 . 2 1 1 2 . 1 2 3 . . 1 2 Specialist 2 | . . . . . . 1 . . . . . . . . 1 . . Hunter 13 | . . . . . . 1 3 . . . 1 2 . 1 3 . 2 Programmer 25 | . . . . . . . 1 2 . . . . 3 2 . 9 8 Behemoth 1 | . . . . . . . . . . . . 1 . . . . . Cetus Guard 3 | . . . . . . . . . . 3 . . . . . . . Thug 1 | . . . . . . . . . . 1 . . . . . . . Best Kill Streak 9 | 1 2 6 3 3 . 9 7 5 3 3 2 7 1 4 7 5 5 Combat Bots Only 9 | . 2 4 3 3 . 9 6 5 3 2 2 7 1 3 7 5 4 Max Kills in Single Turn 2 | 1 1 1 2 1 . 2 2 2 1 2 1 2 1 1 2 2 1 Gunslinging 1 | . . . . . . . . 1 . . . 1 . . 1 . . Exploded 2 | . . . 2 . . 2 . 1 1 1 . . . . . 2 1 Melee 1 | . . 1 . 1 . 1 . . . . . . . . . . . Uniques/NPCs Destroyed . | . . . . . . . . . . . . . . . . . . Combat | -11 -10 -9 -9 -8 -7 -7 -7 -6 -6 -6 -5 -5 -5 -4 -4 -4 -3 -------- Run | Scr Mat Mat Min Mat Fac Gar Fac Fac Ext Cet Fac Gar Fac Fac Gar Fac Res Damage Taken 22314 | . 350 1591 58 763 . 1334 1213 899 1118 465 174 1284 1129 1237 3667 1828 5204 Core 3259 | . 99 358 33 103 . 143 164 88 117 25 . 71 139 70 373 165 1311 Absorbed by Shields 334 | . . . . . . . . . 49 188 . . . . . . 97 Reduced by Siege Mode 355 | . . . . . . . . . . . . 93 17 44 177 17 7 Core Remaining (%) 62 | 100 60 . 2 81 . . 56 . . 72 . . 79 . . 47 . Volleys Fired 831 | 15 22 68 4 29 . 58 63 64 65 15 7 70 59 37 87 77 91 Largest 3 | 2 2 2 2 2 . 2 2 2 2 2 2 2 2 3 2 3 3 Hottest 480 | 40 100 79 53 100 . 104 108 90 90 123 160 480 275 195 100 211 173 Shots Fired 1249 | 30 39 85 6 52 . 92 106 80 80 25 12 114 61 50 132 127 158 Gun 966 | 30 34 85 2 52 . 67 106 38 39 11 12 106 40 30 116 72 126 Cannon 46 | . . . . . . . . . . . . . . . . 41 5 Launcher 59 | . . . 4 . . 25 . 5 5 14 . . . . . 1 5 Special 178 | . 5 . . . . . . 37 36 . . 8 21 20 16 13 22 Kinetic 692 | 30 20 52 2 28 . 45 73 30 31 7 4 50 28 18 115 56 103 Thermal 217 | . 5 33 . . . 22 5 . . 4 8 56 12 12 . 35 25 Explosive 20 | . . . 4 . . 13 . 3 . . . . . . . . . Electromagnetic 147 | . 14 . . 24 . 12 28 10 13 14 . . . . 1 23 8 Robot Hit Streak 28 | 9 11 15 6 7 . 18 10 17 20 7 17 28 17 27 16 20 25 Robot Miss Streak 4 | 3 2 2 2 3 . 2 3 3 1 1 . 4 2 2 3 2 3 Penetration Max 2 | . . . . . . . 1 . 1 1 1 1 1 1 1 . 2 Secondary Targets 13 | . . 2 . . . . . 3 1 . . 4 . . 3 . . Max Gunslinging Chain 1 | . . 1 . . . . . 1 1 . . 1 . . 1 . . Shots Hit Robots 990 | 17 23 107 3 32 . 72 78 64 72 16 10 94 48 43 93 96 122 Core Hits 397 | 8 7 38 9 16 . 57 37 19 19 18 5 36 15 9 36 30 38 Critical Hits 49 | . . . . . . 1 2 . 3 2 1 12 8 2 8 6 4 Critical Kills 20 | . . . . . . . 1 . 1 2 1 4 4 . 3 3 1 Critical Parts Destroyed 24 | . . . . . . 1 1 . 2 . . 6 3 2 5 3 1 Melee Attacks 180 | . . 63 . 21 . 13 14 . 10 . . . 2 . 30 11 16 Thermal 38 | . . . . . . . . . . . . . . . 30 8 . Impact 5 | . . 5 . . . . . . . . . . . . . . . Slashing 135 | . . 58 . 21 . 13 14 . 10 . . . . . . 3 16 Piercing 2 | . . . . . . . . . . . . . 2 . . . . Sneak Attacks 8 | . . 4 . . . 1 1 . . . . . 1 . . . 1 Combat Hostiles 2 | . . . . . . 1 . . . . . . 1 . . . . Follow-up Attacks . | . . . . . . . . . . . . . . . . . . Damage Inflicted 25237 | 158 313 2431 216 581 . 3144 1949 1183 1093 1545 278 2493 1232 822 1815 2483 3501 Guns 17028 | 158 228 965 18 552 . 898 1839 620 853 342 278 2493 964 790 1815 1198 3017 Cannons 1144 | . . . . . . . . . . . . . . . . 999 145 Explosions 4812 | . 85 . 198 . . 1833 . 563 240 1203 . . 158 32 . 286 214 Melee 2234 | . . 1466 . 27 . 413 102 . . . . . 101 . . . 125 Ramming 19 | . . . . 2 . . 8 . . . . . 9 . . . . Kinetic 11592 | 158 109 543 18 302 . 590 1249 505 683 243 138 964 599 438 1815 907 2331 Thermal 5616 | . 85 422 . . . 481 99 . . 335 140 1529 365 352 . 1006 802 Explosive 1675 | . . . 198 . . 718 . 386 . . . . 128 32 . 213 . Electromagnetic 4101 | . 119 . . 250 . 942 491 292 410 967 . . 30 . . 357 243 Impact 79 | . . 79 . . . . . . . . . . . . . . . Slashing 2054 | . . 1387 . 27 . 413 102 . . . . . . . . . 125 Piercing 101 | . . . . . . . . . . . . . 101 . . . . Highest Corruption 35 | . . . . . . 3 3 . 4 5 1 1 3 11 24 35 21 Average Corruption 8 | . . . . . . 3 2 . 4 4 1 1 2 8 19 25 6 Corruption Purged 4 | . . . . . . . 1 . . . . . . . . . 3 Effects 374 | . . . . . . 17 13 . 11 16 2 4 12 20 113 140 26 Message Errors 64 | . . . . . . 4 3 . 3 2 . 3 5 3 14 21 6 Matter Fused 54 | . . . . . . 4 3 . 2 3 . . 3 3 21 11 4 Heat Flow Errors 30 | . . . . . . 3 1 . . 5 . . 1 . 11 9 . Energy Discharges 32 | . . . . . . 1 1 . 2 2 . . 1 2 12 5 6 Parts Rejected 2 | . . . . . . . . . . . . . . . 1 1 . Data Loss (minor) 34 | . . . . . . 5 2 . 2 2 1 . 2 . 6 13 1 Data Loss (major) 5 | . . . . . . . . . . . . . . . 1 3 1 Misfires 6 | . . . . . . . . . . . . . . 1 5 . . Alerts 4 | . . . . . . . . . . . . . . . . 4 . Misdirections 45 | . . . . . . . . . . . . . . 2 10 31 2 Targeting Errors 90 | . . . . . . . 2 . 2 2 1 1 . 9 30 39 4 Weapon Failures 8 | . . . . . . . 1 . . . . . . . 2 3 2 Overload Shots 13 | . . . . . . . . . . . . 7 6 . . . . Effects 1 | . . . . . . . . . . . . 1 . . . . . Short Circuit 1 | . . . . . . . . . . . . 1 . . . . . Overflow Damage 506 | . . 114 . . . 32 62 89 . . . . . 2 . 121 86 Projectiles 71 | . . . . . . . . . . . . . . . . 71 . Explosions 197 | . . . . . . 32 . 89 . . . . . 2 . 50 24 Melee 238 | . . 114 . . . . 62 . . . . . . . . . 62 Knockbacks . | . . . . . . . . . . . . . . . . . . Impact . | . . . . . . . . . . . . . . . . . . Kinetic . | . . . . . . . . . . . . . . . . . . Secondary . | . . . . . . . . . . . . . . . . . . Self-Inflicted Damage 928 | . 33 . 21 1 . 232 4 83 3 26 . . 166 99 . 171 89 Shots 28 | . 1 . 1 . . 13 . 2 2 1 . . 3 1 . 2 2 Rammed 4 | 1 . . . 1 . . 1 . . . . . 1 . . . . Targets Rammed 4 | 1 . . . 1 . . 1 . . . . . 1 . . . . Kicked . | . . . . . . . . . . . . . . . . . . Crushed . | . . . . . . . . . . . . . . . . . . Highest Temperature 464 | . 60 144 6 177 . 190 99 130 42 251 151 464 368 410 250 215 285 Average Temperature 77 | . 24 44 4 82 . 48 68 34 15 72 78 124 111 157 92 64 84 Received Heat Transfer 3073 | . 30 390 6 378 . 384 417 111 226 62 . 360 156 . 180 36 337 Effects 5 | . . . . . . . . . . . . 1 1 2 . . 1 Shutdowns 2 | . . . . . . . . . . . . 1 . 1 . . . Energy Bleed 3 | . . . . . . . . . . . . . 1 1 . . 1 Siege Activations 9 | . . . . . . . . . . . . 2 1 1 2 1 2 Total Turns 274 | . . . . . . . . . . . . 103 16 25 75 24 31 Longest Duration 70 | . . . . . . . . . . . . 70 16 25 44 24 20 Robots Corrupted 8 | . . . . . . 5 . . 1 2 . . . . . . . Combat Hostiles 6 | . . . . . . 4 . . 1 1 . . . . . . . Parts Fried 11 | . . . . . . 1 2 . 4 . . 1 . . . 1 2 Impact Corruptions 1 | . . 1 . . . . . . . . . . . . . . . Robots Melted . | . . . . . . . . . . . . . . . . . . Combat Hostiles . | . . . . . . . . . . . . . . . . . . Parts Melted 9 | . . 2 . . . . . . . . 2 1 . 1 . 1 2 Heat Transferred 7005 | . 100 1073 . . . 844 225 . . 193 222 1817 298 444 . 962 827 Parts Sabotaged . | . . . . . . . . . . . . . . . . . . Parts Stolen . | . . . . . . . . . . . . . . . . . . Parts Stripped . | . . . . . . . . . . . . . . . . . . Power Chain Reactions 12 | . 2 . . . . 5 . 1 . 2 . . . . . . 2 Missiles Intercepted . | . . . . . . . . . . . . . . . . . . Alert | -11 -10 -9 -9 -8 -7 -7 -7 -6 -6 -6 -5 -5 -5 -4 -4 -4 -3 ------- Run | Scr Mat Mat Min Mat Fac Gar Fac Fac Ext Cet Fac Gar Fac Fac Gar Fac Res Peak Influence 975 | 15 164 210 109 228 103 911 607 384 405 458 307 949 975 429 724 903 680 Average Influence 391 | 5 50 75 103 86 103 579 427 198 93 362 246 623 772 277 578 546 459 Maximum Alert Level 3 | . . 1 . 1 . 3 2 1 2 2 1 3 3 2 3 3 2 Low Security (%) 29 | 100 100 95 100 90 100 5 . 37 88 5 38 5 . 14 3 . 6 Level 1 24 | . . 4 . 9 . 18 37 62 11 66 61 17 . 81 11 33 11 Level 2 29 | . . . . . . 37 62 . . 27 . 30 38 4 58 44 82 Level 3 16 | . . . . . . 38 . . . . . 45 61 . 27 22 . Level 4 . | . . . . . . . . . . . . . . . . . . Level 5 . | . . . . . . . . . . . . . . . . . . High Security . | . . . . . . . . . . . . . . . . . . Max Security . | . . . . . . . . . . . . . . . . . . Squads Dispatched 41 | . 2 2 . 3 . . 6 3 2 1 3 . 7 3 . 6 3 Investigation 11 | . 1 . . 1 . . 1 . 2 1 1 . . 1 . 2 1 Extermination 12 | . . . . . . . 1 2 . . . . 1 2 . 4 2 Reinforcement 11 | . 1 2 . 2 . . 4 1 . . . . 1 . . . . Assault 2 | . . . . . . . . . . . . . 2 . . . . Garrison 5 | . . . . . . . . . . . 2 . 3 . . . . Intercept . | . . . . . . . . . . . . . . . . . . Construction Impeded . | . . . . . . . . . . . . . . . . . . Haulers Reinforced . | . . . . . . . . . . . . . . . . . . Stealth | -11 -10 -9 -9 -8 -7 -7 -7 -6 -6 -6 -5 -5 -5 -4 -4 -4 -3 --------- Run | Scr Mat Mat Min Mat Fac Gar Fac Fac Ext Cet Fac Gar Fac Fac Gar Fac Res Distress Signals 10 | . . 1 . 2 . . 1 1 . 2 . . 2 . . . 1 Communications Jammed . | . . . . . . . . . . . . . . . . . . Distress Signals . | . . . . . . . . . . . . . . . . . . Times Spotted 404 | . 15 36 11 23 . 26 26 38 26 20 4 30 36 7 38 27 41 Peak Tracking Total 12 | . 6 5 11 5 . 6 7 5 5 5 2 10 6 3 12 4 10 Tactical Retreats 39 | . 4 4 1 3 . 3 2 2 1 1 . 7 . . 5 2 4 Traps | -11 -10 -9 -9 -8 -7 -7 -7 -6 -6 -6 -5 -5 -5 -4 -4 -4 -3 ------- Run | Scr Mat Mat Min Mat Fac Gar Fac Fac Ext Cet Fac Gar Fac Fac Gar Fac Res Traps Triggered 25 | . 1 1 . . . 3 1 . 1 . 1 . 1 1 9 2 4 Indirectly 2 | . . . . . . 2 . . . . . . . . . . . Trap Hack Attempts . | . . . . . . . . . . . . . . . . . . Triggered . | . . . . . . . . . . . . . . . . . . Disarmed . | . . . . . . . . . . . . . . . . . . Reprogrammed . | . . . . . . . . . . . . . . . . . . Reused . | . . . . . . . . . . . . . . . . . . Traps Extracted . | . . . . . . . . . . . . . . . . . . Installed . | . . . . . . . . . . . . . . . . . . Triggered . | . . . . . . . . . . . . . . . . . . Machines | -11 -10 -9 -9 -8 -7 -7 -7 -6 -6 -6 -5 -5 -5 -4 -4 -4 -3 ---------- Run | Scr Mat Mat Min Mat Fac Gar Fac Fac Ext Cet Fac Gar Fac Fac Gar Fac Res Machines Disabled 57 | . . 1 . 2 . 4 1 1 3 . . 6 12 3 7 17 . Max in Single Turn 7 | . . 1 . 1 . 1 1 1 . . . 1 2 1 1 7 . Garrison Relay 12 | . . . . . . 4 . . . . . 4 . . 4 . . Machines Sabotaged . | . . . . . . . . . . . . . . . . . . Garrisons Compromised . | . . . . . . . . . . . . . . . . . . Overloaded Fab Kills . | . . . . . . . . . . . . . . . . . . Fab Network Shutdowns . | . . . . . . . . . . . . . . . . . . Hacking | -11 -10 -9 -9 -8 -7 -7 -7 -6 -6 -6 -5 -5 -5 -4 -4 -4 -3 --------- Run | Scr Mat Mat Min Mat Fac Gar Fac Fac Ext Cet Fac Gar Fac Fac Gar Fac Res Machines Accessed 54 | . 2 6 . 4 1 . 4 2 13 4 4 . 4 3 . 5 2 Terminals 45 | . 2 5 . 4 . . 4 1 13 4 1 . 3 2 . 4 2 Fabricators 4 | . . . . . . . . 1 . . 1 . 1 . . 1 . Repair Stations . | . . . . . . . . . . . . . . . . . . Recycling Units 1 | . . . . . . . . . . . 1 . . . . . . Scanalyzers 1 | . . 1 . . . . . . . . . . . . . . . Garrison Access 3 | . . . . . 1 . . . . . 1 . . 1 . . . Total Hacks 149 | . 11 16 . 16 1 . 13 3 33 8 9 . 9 10 . 14 6 Successful 72 | . 7 8 . 8 1 . 9 . 18 4 4 . 4 3 . 4 2 Failed 77 | . 4 8 . 8 . . 4 3 15 4 5 . 5 7 . 10 4 Catastrophic 12 | . . 1 . 1 . . 1 1 1 1 . . . 1 . 4 1 Database Lockouts . | . . . . . . . . . . . . . . . . . . Manual 85 | . 3 12 . 9 . . 5 1 16 9 6 . 7 7 . 8 2 Terminals 135 | . 11 14 . 16 . . 13 1 33 8 5 . 6 9 . 13 6 Fabricators 8 | . . . . . . . . 2 . . 2 . 3 . . 1 . Repair Stations . | . . . . . . . . . . . . . . . . . . Recycling Units 1 | . . . . . . . . . . . 1 . . . . . . Scanalyzers 2 | . . 2 . . . . . . . . . . . . . . . Garrison Access 3 | . . . . . 1 . . . . . 1 . . 1 . . . Terminal Hacks 34 | . 6 2 . 5 . . 6 . 11 . 1 . 1 1 . 1 . Part Schematic 1 | . . . . . . . . . . . 1 . . . . . . Robot Analysis 1 | . . . . 1 . . . . . . . . . . . . . Prototype ID Bank 3 | . 1 . . 1 . . . . 1 . . . . . . . . Open Door 7 | . . . . . . . . . 7 . . . . . . . . Branch Access Points 1 | . 1 . . . . . . . . . . . . . . . . Terminal Index 2 | . 1 1 . . . . . . . . . . . . . . . Unreport Threat 2 | . . . . . . . 1 . . . . . . 1 . . . Locate Traps 4 | . . . . 1 . . 1 . 2 . . . . . . . . Recall Investigation 3 | . 1 . . 1 . . 1 . . . . . . . . . . Recall Reinforcements 1 | . . . . . . . 1 . . . . . . . . . . Hauler Manifests 1 | . . . . . . . . . . . . . . . . 1 . Registered Components 1 | . . . . . . . 1 . . . . . . . . . . Zone Layout 7 | . 2 1 . 1 . . 1 . 1 . . . 1 . . . . Fabricator Hacks 2 | . . . . . . . . . . . 1 . 1 . . . . Load Schematic 1 | . . . . . . . . . . . . . 1 . . . . Build 1 | . . . . . . . . . . . 1 . . . . . . Repair Station Hacks . | . . . . . . . . . . . . . . . . . . Recycling Unit Hacks . | . . . . . . . . . . . . . . . . . . Scanalyzer 2 | . . 2 . . . . . . . . . . . . . . . Insert Component 1 | . . 1 . . . . . . . . . . . . . . . Analyze 1 | . . 1 . . . . . . . . . . . . . . . Garrison Access Hacks 3 | . . . . . 1 . . . . . 1 . . 1 . . . Unlock Access 3 | . . . . . 1 . . . . . 1 . . 1 . . . Unauthorized Hacks 96 | . 2 15 . 10 . . 6 1 18 10 5 . 8 6 . 11 4 Terminals 30 | . 1 4 . 3 . . 3 . 7 4 1 . 1 1 . 3 2 Track 4 | . . . . . . . . . 2 2 . . . . . . . Botnet 26 | . 1 4 . 3 . . 3 . 5 2 1 . 1 1 . 3 2 Fabricators 1 | . . . . . . . . . . . . . 1 . . . . Prioritize 1 | . . . . . . . . . . . . . 1 . . . . Repair Stations . | . . . . . . . . . . . . . . . . . . Recycling Units . | . . . . . . . . . . . . . . . . . . Scanalyzers . | . . . . . . . . . . . . . . . . . . Garrison Access . | . . . . . . . . . . . . . . . . . . Data Cores Recovered . | . . . . . . . . . . . . . . . . . . Used . | . . . . . . . . . . . . . . . . . . Hacking Detections 45 | . 2 5 . 4 . . 4 2 9 3 3 . 4 2 . 5 2 Full Trace Events 12 | . . 1 . 2 . . 1 . 2 1 1 . . 1 . 2 1 Feedback Events . | . . . . . . . . . . . . . . . . . . Feedback Blocked . | . . . . . . . . . . . . . . . . . . Robot Schematics Acquired . | . . . . . . . . . . . . . . . . . . Robots Built 3 | . . . . . . . . . . . 3 . . . . . . Matter 318 | . . . . . . . . . . . 318 . . . . . . Time 169 | . . . . . . . . . . . 169 . . . . . . Total Robot Build Rating 18 | . . . . . . . . . . . 18 . . . . . . Part Schematics Acquired 2 | . . 1 . . . . . . . . 1 . . . . . . Parts Built . | . . . . . . . . . . . . . . . . . . Matter . | . . . . . . . . . . . . . . . . . . Time . | . . . . . . . . . . . . . . . . . . Total Part Build Rating . | . . . . . . . . . . . . . . . . . . Parts Repaired . | . . . . . . . . . . . . . . . . . . Time . | . . . . . . . . . . . . . . . . . . Parts Recycled . | . . . . . . . . . . . . . . . . . . Recycled Matter . | . . . . . . . . . . . . . . . . . . Retrieved Matter . | . . . . . . . . . . . . . . . . . . Retrieved Components . | . . . . . . . . . . . . . . . . . . Parts Scanalyzed 1 | . . 1 . . . . . . . . . . . . . . . Part Schematics Acquired 1 | . . 1 . . . . . . . . . . . . . . . Parts Damaged . | . . . . . . . . . . . . . . . . . . Bothacking | -11 -10 -9 -9 -8 -7 -7 -7 -6 -6 -6 -5 -5 -5 -4 -4 -4 -3 ------------ Run | Scr Mat Mat Min Mat Fac Gar Fac Fac Ext Cet Fac Gar Fac Fac Gar Fac Res Used RIF Installer 3 | . . . . . . 1 . . . . . 1 . . 1 . . Robot Detection 1 | . . . . . . . . . . . . 1 . . . . . Program Shield 1 | . . . . . . . . . . . . . . . 1 . . Robots Hacked 74 | . . . . . . . . 21 5 . . 4 11 8 10 6 9 Non-combat 28 | . . . . . . . . 10 . . . . 3 5 . 5 5 Combat 46 | . . . . . . . . 11 5 . . 4 8 3 10 1 4 Robot Hacks Applied 88 | . . . . . . . . 25 5 . . 4 15 9 10 7 13 no_distress 1 | . . . . . . . . . . . . . . 1 . . . generate_echo 3 | . . . . . . . . . . . . . . 1 . 1 1 find_chute 1 | . . . . . . . . 1 . . . . . . . . . map_walls 5 | . . . . . . . . 1 . . . . 1 . . 1 2 randomize_corridors 1 | . . . . . . . . . . . . . 1 . . . . map_earth 2 | . . . . . . . . . . . . . 1 1 . . . drop_inventory 3 | . . . . . . . . 2 . . . . . . . 1 . find_recycling 1 | . . . . . . . . . . . . . . . . 1 . ignore_parts 3 | . . . . . . . . 3 . . . . . . . . . purge_threat 3 | . . . . . . . . 1 . . . . 1 . . . 1 find_terminals 1 | . . . . . . . . . . . . . 1 . . . . disarm_traps 1 | . . . . . . . . 1 . . . . . . . . . block_reporting 2 | . . . . . . . . 1 . . . . . . . . 1 map_route 6 | . . . . . . . . . . . . . . 2 . 1 3 relay_feed 2 | . . . . . . . . . . . . . . 1 . . 1 find_shortcuts 1 | . . . . . . . . . . . . . . . 1 . . link_fov 2 | . . . . . . . . . . . . . 1 . . 1 . scatter_targeting 1 | . . . . . . . . 1 . . . . . . . . . link_complan 1 | . . . . . . . . 1 . . . . . . . . . broadcast_data 1 | . . . . . . . . . . . . . 1 . . . . spike_heat 1 | . . . . . . . . . 1 . . . . . . . . overload_power 2 | . . . . . . . . 1 . . . . 1 . . . . amplify_resonance 6 | . . . . . . . . 2 . . . . 1 . 3 . . go_dormant 2 | . . . . . . . . 1 1 . . . . . . . . overwrite_iff 7 | . . . . . . . . . . . . 1 2 1 1 . 2 streamctrl_high 3 | . . . . . . . . . . . . . . . 2 . 1 formatsys_low 2 | . . . . . . . . 1 . . . . 1 . . . . formatsys_high 24 | . . . . . . . . 8 3 . . 3 3 2 3 1 1 Relay Couplers Released 48 | . . . . . . 13 . . . . . 14 3 . 18 . . Machine Destruction 45 | . . . . . . 13 . . . . . 14 . . 18 . . Programmers 3 | . . . . . . . . . . . . . 3 . . . . Attached 32 | . . . . . . . . 7 2 . . 4 4 1 8 2 4 Robots Rewired 14 | . . . . . . . . . 14 . . . . . . . . Allies Hacked 1 | . . . . . . . . . . . . . 1 . . . . Hacks Repelled . | . . . . . . . . . . . . . . . . . . Allies | -11 -10 -9 -9 -8 -7 -7 -7 -6 -6 -6 -5 -5 -5 -4 -4 -4 -3 -------- Run | Scr Mat Mat Min Mat Fac Gar Fac Fac Ext Cet Fac Gar Fac Fac Gar Fac Res Total Allies 62 | . . . . . . . . 9 26 . 3 4 6 3 6 1 4 Largest Group 11 | . . . . . . . . 5 11 9 3 4 5 2 3 3 2 Highest-Rated Group 428 | . . . . . . . . 155 428 428 90 136 205 112 211 145 60 Highest-Rated Ally 156 | . . . . . . . . 42 156 156 37 49 49 56 115 49 30 Total Orders 14 | . . . . . . . . 6 2 . . 4 . . 2 . . STAY 2 | . . . . . . . . . . . . 1 . . 1 . . GOTO 4 | . . . . . . . . 2 1 . . 1 . . . . . FOLLOW 6 | . . . . . . . . 2 1 . . 2 . . 1 . . EXPLORE 2 | . . . . . . . . 2 . . . . . . . . . Ally Attacks 407 | . . . . . . . . 69 95 82 . 53 62 4 17 15 10 Total Damage 9038 | . . . . . . . . 1119 1949 1510 . 1320 1585 226 622 541 166 Kills 69 | . . . . . . . . 7 17 17 . 4 13 1 6 4 . Allies Corrupted 4 | . . . . . . . . . . 1 1 . 1 1 . . . Allies Melted 1 | . . . . . . . . 1 . . . . . . . . . Intel | -11 -10 -9 -9 -8 -7 -7 -7 -6 -6 -6 -5 -5 -5 -4 -4 -4 -3 ------- Run | Scr Mat Mat Min Mat Fac Gar Fac Fac Ext Cet Fac Gar Fac Fac Gar Fac Res Robot Analysis Total 1 | . . . . 1 . . . . . . . . . . . . . Derelict Logs Recovered 2 | . . . 2 . . . . . . . . . . . . . . Drone Launches 4 | . . . . . . . . 4 . . . . . . . . . Drone Recoveries . | . . . . . . . . . . . . . . . . . . Exploration | -11 -10 -9 -9 -8 -7 -7 -7 -6 -6 -6 -5 -5 -5 -4 -4 -4 -3 ------------- Run | Scr Mat Mat Min Mat Fac Gar Fac Fac Ext Cet Fac Gar Fac Fac Gar Fac Res Turns Passed 16108 | 167 404 1465 155 683 59 1270 969 1249 964 644 650 1348 1220 569 1540 1395 1357 Spaces Moved 9194 | 112 251 705 104 412 46 867 550 776 479 314 372 679 653 315 799 828 932 Core 2 | 1 . . . . . . . . . . . . . . . . 1 Treads 3448 | . . 311 . 9 . . . . 243 281 372 679 653 232 273 261 134 Legs 256 | . . . 20 . . . . . 151 33 . . . . 2 . 50 Wheels 4936 | 111 251 394 84 403 46 867 550 776 85 . . . . 83 524 567 195 Hover 552 | . . . . . . . . . . . . . . . . . 552 Flight . | . . . . . . . . . . . . . . . . . . Fastest Speed 44 | 50 100 100 110 105 110 110 110 110 120 120 160 160 160 110 110 100 44 Average Speed 130 | 99 108 137 127 114 110 113 113 127 152 172 160 160 160 147 133 128 86 Slowest Speed 450 | 100 110 200 270 220 110 130 140 150 210 180 160 160 160 160 210 230 450 Overloaded Moves . | . . . . . . . . . . . . . . . . . . Propulsion Burnouts . | . . . . . . . . . . . . . . . . . . Robots Hopped . | . . . . . . . . . . . . . . . . . . Cave-ins Triggered 2 | . . . . . . . . . 1 . . . . . 1 . . Exploration Rate (%) 39 | 7 43 49 51 45 2 91 15 22 64 78 7 87 17 8 76 18 24 Regions Visited 17 Branch Regions 3 Pre-discovered Areas 1 | . . . 1 . . . . . . . . . . . . . . Known Exits Taken 4 | . . . 1 . 1 . . . . . 1 . . 1 . . . Unknown Exits Taken 10 | 1 1 1 . 1 . . 1 1 1 1 . . 1 . . 1 . Scrap Searched 2 | . . . 2 . . . . . . . . . . . . . . Spaces Dug 159 | . 4 14 . 18 . . 12 . 10 . . . 1 . . 96 4 Terrain Destroyed 550 | . 12 14 38 18 . 98 12 28 10 21 1 3 83 34 11 138 29 Melee 62 | . . 14 . 18 . . 12 . 10 . . . 1 . . 3 4 Projectile 45 | . 5 . . . . . . . . . 1 3 9 3 11 9 4 AOE 443 | . 7 . 38 . . 98 . 28 . 21 . . 73 31 . 126 21 Actions | -11 -10 -9 -9 -8 -7 -7 -7 -6 -6 -6 -5 -5 -5 -4 -4 -4 -3 --------- Run | Scr Mat Mat Min Mat Fac Gar Fac Fac Ext Cet Fac Gar Fac Fac Gar Fac Res Total 11999 | 141 335 1022 121 547 53 1044 765 976 632 402 415 864 779 398 1119 1024 1362 Wait 789 | . 48 96 . 18 . 13 87 66 26 16 21 81 27 12 65 23 190 Move 9180 | 111 250 704 103 411 46 866 550 775 477 313 372 678 652 315 798 827 932 Hop . | . . . . . . . . . . . . . . . . . . Pick Up 237 | 7 5 29 . 27 . 25 7 16 4 14 3 13 8 10 30 20 19 Fast Attach 120 | 6 2 8 4 2 2 5 8 10 11 7 2 1 6 2 11 9 24 Attach 134 | . . 21 1 11 2 13 4 9 8 . 1 1 5 11 16 11 20 Detach 38 | . . 6 2 3 . 2 . 1 3 2 1 . 1 3 2 2 10 Swap 146 | . 5 16 2 8 1 22 10 10 9 7 5 9 7 1 10 14 10 Drop 228 | 1 3 11 5 16 2 19 14 23 9 28 3 11 11 7 16 22 27 Fire 831 | 15 22 68 4 29 . 58 63 64 65 15 7 70 59 37 87 77 91 Melee 180 | . . 63 . 21 . 13 14 . 10 . . . 2 . 30 11 16 Ram 2 | 1 . . . 1 . . . . . . . . . . . . . Kick . | . . . . . . . . . . . . . . . . . . Crush 1 | . . . . . . . . . . . . . 1 . . . . Escape Stasis 107 | . . . . . . 8 8 . 6 . . . . . 54 8 23 Rewire 4 | . . . . . . . . . 4 . . . . . . . . Trap . | . . . . . . . . . . . . . . . . . . Miscellaneous 2 | . . . . . . . . 2 . . . . . . . . . Route ------- -11/Scrapyard -10/Materials (discovered 3 exits: *Mat x2 / Min) -9/Materials -9/Mines -8/Materials -7/Factory (discovered 2 exits: [*Low] / Gar) -7/Garrison (discovered 3 exits: *Fac x3) -7/Factory -6/Factory (discovered 2 exits: *Fac / *Ext) -6/Extension (discovered 2 exits: *Fac / *Cet) -6/Cetus (discovered 3 exits: *Fac x2 / [*Arc]) -5/Factory -5/Garrison (discovered 3 exits: *Fac x3) -5/Factory -4/Factory -4/Garrison (discovered 2 exits: *Fac x2) -4/Factory -3/Research History --------- Turn | Location | Event 30 | -11/Scrapyard | Discovered new exit (range 16) 168 | -11/Scrapyard | Entered Materials 295 | -10/Materials | Discovered new exit (range 14) 301 | -10/Materials | Build established: Mutant 346 | -10/Materials | Identified exit to Mines 453 | -10/Materials | Discovered new exit (range 14) 572 | -10/Materials | Entered another Materials area 572 | -9/Materials | Evolved 2 slots: Utility x2 871 | -9/Materials | Lost 4 parts (1n1u2w) 1623 | -9/Materials | Discovered new exit (range 16) 1653 | -9/Materials | Core integrity fell below 50% 1863 | -9/Materials | Core integrity fell below 20% 1920 | -9/Materials | Lost 4 parts (2p1n1u) 2037 | -9/Materials | Entered Mines 2147 | -9/Mines | Assembled infested the area 2147 | -9/Mines | Identified exit to Materials 2152 | -9/Mines | Assisted by a Guerilla fighting off Assembled 2188 | -9/Mines | Build established: Hauler-Mutant 2192 | -9/Mines | Entered Materials 2192 | -8/Materials | Evolved 2 slots: Utility x2 2812 | -8/Materials | Lost 3 parts (2n1w) 2854 | -8/Materials | Discovered new exit (range 19) 2875 | -8/Materials | Entered Factory 2875 | -7/Factory | Evolved 2 slots: Utility x2 2880 | -7/Factory | Discovered new exit (range 5) 2934 | -7/Factory | Identified exit to Garrison 2934 | -7/Factory | Entered Garrison 3097 | -7/Garrison | Triggered checkpoint 3114 | -7/Garrison | Triggered checkpoint 3173 | -7/Garrison | Discovered new exit (range 10) 3214 | -7/Garrison | Triggered checkpoint 3272 | -7/Garrison | Destroyed 9 combat bots 3328 | -7/Garrison | Discovered new exit (range 12) 3380 | -7/Garrison | Triggered checkpoint 3437 | -7/Garrison | Discovered new exit (range 14) 3457 | -7/Garrison | Installed Relay Interface Framework 3487 | -7/Garrison | Triggered checkpoint 3514 | -7/Garrison | Garrison Relay disabled 3687 | -7/Garrison | Triggered checkpoint 3721 | -7/Garrison | Garrison Relay disabled 3816 | -7/Garrison | Triggered checkpoint 3852 | -7/Garrison | Garrison Relay disabled 3934 | -7/Garrison | Triggered checkpoint 3968 | -7/Garrison | Garrison Relay disabled 4051 | -7/Garrison | Lost 4 parts (1p2u1w) 4059 | -7/Garrison | Build established: Scavenger-Mutant 4204 | -7/Garrison | Entered Factory 5061 | -7/Factory | Discovered new exit (range 16) 5168 | -7/Factory | Lost 4 parts (1p2u1w) 5173 | -7/Factory | Entered another Factory area 5173 | -6/Factory | Evolved 2 slots: Propulsion x2 5453 | -6/Factory | Build established: Bothacker-Mutant 6031 | -6/Factory | Discovered new exit (range 11) 6247 | -6/Factory | Found Powered Armor 6373 | -6/Factory | Discovered new exit (range 9) 6416 | -6/Factory | Found Hvy. Reactive Plating 6422 | -6/Factory | Entered Extension 6702 | -6/Extension | Rescued a captive Derelict 6781 | -6/Extension | Rescued a captive Derelict 6828 | -6/Extension | Rescued a captive Derelict 6837 | -6/Extension | Build established: Commander-Mutant 6878 | -6/Extension | Spotted B-75 Beast 6946 | -6/Extension | Crushed by falling debris 6977 | -6/Extension | Lost 3 parts (1n1u1w) 7114 | -6/Extension | Rescued A7 7206 | -6/Extension | Build established: Bothacker-Mutant 7275 | -6/Extension | Rescued a captive Derelict 7319 | -6/Extension | Rescued a captive Derelict 7319 | -6/Extension | Rescued a captive Derelict 7334 | -6/Extension | Rescued a captive Derelict 7334 | -6/Extension | Rescued a captive Derelict 7358 | -6/Extension | Discovered new exit (range 10) 7360 | -6/Extension | Discovered new exit (range 6) 7386 | -6/Extension | Entered Cetus 7386 | -6/Cetus | Accompanied by 9 allies 7391 | -6/Cetus | Acquired a Cetus Manufacturing Module code from A7 7408 | -6/Cetus | Spotted Cetus Guard 7408 | -6/Cetus | Spotted Cetus Guard 7410 | -6/Cetus | Spotted Cetus Guard 7410 | -6/Cetus | Spotted Cetus Guard 7415 | -6/Cetus | Allies destroyed Cetus Guard 7421 | -6/Cetus | Destroyed Cetus Guard 7423 | -6/Cetus | Allies destroyed Cetus Guard 7429 | -6/Cetus | Destroyed Cetus Guard 7521 | -6/Cetus | Discovered new exit (range 15) 7740 | -6/Cetus | Build established: Scavenger-Mutant 7797 | -6/Cetus | Discovered new exit (range 15) 7844 | -6/Cetus | Spotted Cetus Guard 7845 | -6/Cetus | Spotted Cetus Guard 7848 | -6/Cetus | Spotted Cetus Guard 7850 | -6/Cetus | Allies destroyed Cetus Guard 7856 | -6/Cetus | Destroyed Cetus Guard 7856 | -6/Cetus | Allies destroyed Cetus Guard 7857 | -6/Cetus | Spotted Cetus Guard 7858 | -6/Cetus | Allies destroyed Cetus Guard 7871 | -6/Cetus | Discovered new exit (range 15) 7880 | -6/Cetus | Met Revision 17 8030 | -6/Cetus | Entered Factory 8030 | -5/Factory | Accompanied by 2 allies 8030 | -5/Factory | Evolved 2 slots: Propulsion x2 8492 | -5/Factory | Garrison activated, responded to threat 8592 | -5/Factory | Fabricated B-60 Warrior (x3) 8680 | -5/Factory | Identified exit to Garrison 8680 | -5/Factory | Entered Garrison 8680 | -5/Garrison | Accompanied by 3 allies 8716 | -5/Garrison | Triggered checkpoint 8735 | -5/Garrison | Garrison Relay disabled 8837 | -5/Garrison | Spotted B-75 Beast 8925 | -5/Garrison | Destroyed B-75 Beast 8969 | -5/Garrison | Triggered checkpoint 8970 | -5/Garrison | Triggered checkpoint 9036 | -5/Garrison | Destroyed 7 combat bots 9061 | -5/Garrison | Triggered checkpoint 9118 | -5/Garrison | Triggered checkpoint 9212 | -5/Garrison | Discovered new exit (range 14) 9258 | -5/Garrison | Triggered checkpoint 9284 | -5/Garrison | Garrison Relay disabled 9410 | -5/Garrison | Triggered checkpoint 9445 | -5/Garrison | Garrison Relay disabled 9484 | -5/Garrison | Discovered new exit (range 15) 9520 | -5/Garrison | Expanded RIF knowledge: Robot Detection 9591 | -5/Garrison | Build established: Bothacker-Mutant 9717 | -5/Garrison | Discovered new exit (range 13) 9798 | -5/Garrison | Triggered checkpoint 9888 | -5/Garrison | Garrison Relay disabled 10028 | -5/Garrison | Entered Factory 10028 | -5/Factory | Accompanied by 3 allies 10521 | -5/Factory | Garrison activated, responded to threat 10928 | -5/Factory | First assault squad dispatched 11212 | -5/Factory | Discovered new exit (range 13) 11248 | -5/Factory | Entered another Factory area 11248 | -4/Factory | Evolved 2 slots: Utility x1, Weapon x1 11587 | -4/Factory | P-70 Sage assimilated allied Assassin 7a 11623 | -4/Factory | System corruption reached 10% 11767 | -4/Factory | Spotted B-86 Titan 11817 | -4/Factory | Identified exit to Garrison 11817 | -4/Factory | Entered Garrison 11817 | -4/Garrison | Accompanied by 1 ally 11834 | -4/Garrison | Triggered checkpoint 11867 | -4/Garrison | Garrison Relay disabled 12002 | -4/Garrison | Spotted B-86 Titan 12015 | -4/Garrison | Hijacked Titan 7a control node with streamctrl_high 12016 | -4/Garrison | Triggered checkpoint 12018 | -4/Garrison | Triggered checkpoint 12020 | -4/Garrison | Triggered checkpoint 12021 | -4/Garrison | Triggered checkpoint 12037 | -4/Garrison | Crushed by falling debris 12072 | -4/Garrison | Lost 4 parts (3u1w) 12075 | -4/Garrison | Destroyed 7 combat bots 12095 | -4/Garrison | Found Hvy. Reflective Plating 12319 | -4/Garrison | Discovered new exit (range 10) 12368 | -4/Garrison | Triggered checkpoint 12439 | -4/Garrison | Lost 4 parts (2n1u1w) 12443 | -4/Garrison | Garrison Relay disabled 12648 | -4/Garrison | Discovered new exit (range 9) 12665 | -4/Garrison | Expanded RIF knowledge: Program Shield 12706 | -4/Garrison | Triggered checkpoint 12898 | -4/Garrison | Garrison Relay disabled 13192 | -4/Garrison | Triggered checkpoint 13246 | -4/Garrison | Garrison Relay disabled 13357 | -4/Garrison | Entered Factory 13357 | -4/Factory | Accompanied by 2 allies 14277 | -4/Factory | Found Prototype Launcher 14277 | -4/Factory | Identified Tesla Bomb Launcher 14424 | -4/Factory | Discovered new exit (range 91) 14478 | -4/Factory | System corruption reached 30% 14635 | -4/Factory | Core integrity fell below 50% 14752 | -4/Factory | Entered Research 14752 | -3/Research | Evolved 2 slots: Utility x2 14866 | -3/Research | Lost 3 parts (1p2u) 14925 | -3/Research | Lost 3 parts (2u1w) 16004 | -3/Research | Lost 9 parts (1p4n1u3w) 16054 | -3/Research | System corruption reached 10% 16079 | -3/Research | Spotted B-86 Titan 16084 | -3/Research | Core integrity fell below 50% 16105 | -3/Research | Core integrity fell below 20% 16109 | -3/Research | Destroyed by B-86 Titan with Railgun Last Messages --------------- 16096_ Antigrav Array destroyed. 16096_ Penetrated by Slug. 16096_ Scythe destroyed. 16096_ Slug penetrates Wall. 16101_ B-86 Titan activates siege mode. 16103_ Penetrated by Slug. 16104_ Hvy. Proton Missile Launcher destroyed. 16105_ =&8R DP8&KW49GUZTHS, TCZNE&YTK>WY 16106_ Med. Storage Unit destroyed. 16106_ Penetrated by Slug. 16106_ Slug penetrates Wall. 16106_ K-01 Serf collects debris. 16107_ P-80 Master repels hacking attempt. 16107_ Exp. Energy Well destroyed. 16108_ P-80 Master repels hacking attempt. 16109_ Penetrated by Slug. 16109_ Lrg. Storage Unit destroyed. 16109_ Slug penetrates Wall. 16109_ Knocked back. 16109_ Penetrated by Slug. Map ----- +----------------------------------------------------+ | ?????????????????????????????????????????????????? | | ?????????????????????????????????????????????????? | | ?????????????????????????????????????????????????? | | ?????????????????????????????????????????????????? | | ?????????????????????????????????????????????????? | | ?????????????????????????????????????????????????? | | ?????????????????????????????????????????????????? | | ?????????????????????????????????????????????????? | | ?????????????????????????????????????????????????? | | ?????????????????????????????????????????????????? | | ?????????????????????????????????????????????????? | | ?????????????????????????????????????????????????? | | ?????????????????????????????????????????????????? | | ?????????????????????????????????????????????????? | | ???????????????????????###########???????????????? | | ???????????????????????# ????????????????? | | ??????????????######???# ?????????????????? | | ??????????????# ??# ??????????????????? | | ??????????????# = ?# ???????????????????? | | ??????????????# ?# #????????????????????? | | ??????????????# # #????????????????????? | | ??????????????# # #????????????????????? | | ??????????????# ; #????????????????????? | | ??????????????# ! # #????????????????????? | | ??????????????# ??# #????????????????????? | | ??????????????# ????# @! #????????????????????? | | ?????############+#????#!!= #????????????????????? | | ###### # #????#spp #????????????????????? | | # ! # ######p #????????????????????? | | # # Y w ???????????????????? | | """ # """ / # ??????????????????? | | """ # """ # # ?????????????????? | | """ # """ # !! " #? ????????????????? | | # # !! " "#?? ???????????????? | | # #/ #??####??????????????? | | # "" # ! #????????????????????? | | # "" # " #????????????????????? | | "" # "T / k BB ???????????????????? | | R"" # "" # B #??????????????????? | | """ # "" # ###??????????????????? | | ###"## # ########????????????????????? | | + # #???????????????????????????? | | ######### ####### #???????????????????????????? | | / ]####?????# +???????????????????????????? | | # #????????# #???????????????????????????? | | # #????????# #???????????????????????????? | | # #???""???? #???????????????????????????? | | #"" #??"""???? ????????????????????????????? | | #"" #? ""?????????????????????????????????????? | | #"" # ??????????????????????????????????????? | +----------------------------------------------------+ Best States ------------- Heat Dissipation 136 Coolant Potential 50 Energy Generation 25 Energy Capacity 1325 Matter Stores 300 Matter Capacity 300 Sight Range 20 Robot Scan Range 13 Terrain Scan Range 20 Terrain Scan Density 10 Jamming Range 8 Armor Coverage 900 Resistance: KI 30 Resistance: TH 25 Resistance: EM 25 Core Shielding 20 Propulsion Shielding 33 Weapon Cycling 20 Evasion (%) 55 Targeting Accuracy 14 Target Analysis 6 Recoil Reduction 6 Item Schematics ----------------- Rocket Launcher | -9/Materials | Scanalyzed Hcp. Storage Unit | -5/Factory | Hacked Robot Schematics ------------------ None Fabricated ------------ B-60 Warrior | x3 | -5/Factory | Preloaded Alien Tech Used ----------------- None Achievements -------------- None Challenges ------------ None Game ------ Seed ExplosiveTiamatBeamcaster Manual? 0 Play Time 04:32:43 Cumulative 40.2 hours Start 2020.01.14 @ 21:36:37 End 2020.01.15 @ 13:55:28 Sessions 3 Manual Loads 0 Difficulty Rogue Special Mode None Game No. 17 Rogue 17 Adventurer 0 Explorer 0 Win Type - Total 0 Types 0/0/0/0/0/0/0 Lore% 20 Gallery% 46 Achievement% 35 Wizard Run 0 Options --------- ASCII 0 Keyboard 0 Movement Numpad Keybinds 0 Fullscreen 1 Font 18/SmallcapsGlow Map View 76x50 Tactical HUD 1 Map Filters NONE Filters NONE Steam 1 RUN: d81c3459-38c9-4a31-beef-c84e2e410d7c